Cogmind - Beta 11 *** ADVENTURER MODE // 2022.03.18 @ 21:35:55 Player: HeikoO Result: Destroyed by S-27 Virus with Autogun Performance ------------- Evolutions (3) 1500 Regions Visited (7) 1400 Robots Destroyed (42) 210 Value Destroyed (1642) 1642 Prototype IDs (1) 20 Alien Tech Used (0) 0 Bonus (110) 110 TOTAL SCORE: 4882 Bonus ------- Follower Combat Kills 110 Cogmind --------- Core Integrity 0/700 Matter 293/300 Energy 98/100 System Corruption 5% Temperature Cool (0) Movement Core (50) Location -7/Lower Caves Parts ------- > --- POWER (2) -------- (None) > --- PROPULSION (4) --- (None) > --- UTILITY (5) ------ Targeting Computer > --- WEAPON (2) ------- (None) > --- INVENTORY (5) ---- (None) Peak State ------------ > --- POWER ------------ Deuterium Engine Light Nuclear Core > --- PROPULSION ------- Light Treads Light Treads Light Treads Advanced Treads > --- UTILITY ---------- Small Storage Unit Weight Redist. System Transport Network Coupler Targeting Computer Transmission Jammer > --- WEAPON ----------- Heavy EM Shotgun Particle Gun > --- INVENTORY -------- Light Nuclear Core Advanced ECM Suite Advanced Assault Cannon [Rating: 28] Favorites ----------- Power Light Ion Engine Engine Light Ion Engine Power Core Light Nuclear Core Propulsion Light Treads Treads Light Treads Leg Aluminum Leg Utility Targeting Computer Device Weight Redist. System Storage Small Storage Unit Processor Targeting Computer Protection Medium Armor Plating Weapon Assault Rifle Energy Gun Particle Gun Energy Cannon Beam Cannon Ballistic Gun Assault Rifle Ballistic Cannon Advanced Assault Cannon Build | -11 -10 -9 -9 -8 -8 -7 -7 ------- Run | Scr Mat Mat Min Mat Sto Fac Low Slots Evolved 6 | . . 2 . 2 . 2 . Power 1 | . . 1 . . . . . Propulsion 2 | . . . . . . 2 . Utility 3 | . . 1 . 2 . . . Weapon . | . . . . . . . . Parts Attached 49 | 6 4 3 3 . 21 11 1 Power 15 | 1 . 3 2 . 6 3 . Engine 12 | 1 . 3 1 . 6 1 . Core 3 | . . . 1 . . 2 . Reactor . | . . . . . . . . Propulsion 11 | 2 . . 1 . 5 3 . Treads 8 | . . . . . 5 3 . Leg 3 | 2 . . 1 . . . . Wheel . | . . . . . . . . Hover . | . . . . . . . . Flight . | . . . . . . . . Utility 9 | 1 2 . . . 4 2 . Device 4 | . 1 . . . 1 2 . Storage 2 | 1 . . . . 1 . . Processor 2 | . 1 . . . 1 . . Hackware . | . . . . . . . . Protection 1 | . . . . . 1 . . Artifact . | . . . . . . . . Weapon 14 | 2 2 . . . 6 3 1 Energy Gun 6 | . . . . . 3 2 1 Energy Cannon 1 | . 1 . . . . . . Ballistic Gun 6 | 2 1 . . . 3 . . Ballistic Cannon 1 | . . . . . . 1 . Launcher . | . . . . . . . . Special Weapon . | . . . . . . . . Impact Weapon . | . . . . . . . . Slashing Weapon . | . . . . . . . . Piercing Weapon . | . . . . . . . . Special Melee Weapon . | . . . . . . . . Unidentified Prototypes . | . . . . . . . . Parts Lost 31 | . 1 . . . 10 19 1 Power 9 | . . . . . 4 5 . Propulsion 8 | . . . . . 3 5 . Utility 5 | . . . . . 1 4 . Weapon 9 | . 1 . . . 2 5 1 Highest Loss Streak 6 | . 1 . . . 4 6 1 To Critical Strikes . | . . . . . . . . Average Slot Usage (%) 78 | . 89 88 87 72 82 69 11 Engine 12 | . 14 22 12 9 14 6 . Core 2 | . . . 9 9 1 2 . Treads 8 | . . . . . 12 17 . Leg 8 | . 28 22 22 18 1 . . Device 6 | . 5 . . . 8 11 . Storage 8 | . 14 11 11 9 9 4 . Processor 12 | . . 11 11 9 17 11 7 Energy Gun 4 | . . . . . 5 8 3 Energy Cannon 4 | . 5 11 11 9 3 . . Ballistic Gun 8 | . 21 11 11 9 8 1 . Naked Turns . | . . . . . . . . Heaviest Build 33 | 14 15 18 18 18 33 27 3 Greatest Support 88 | 20 20 20 20 20 46 88 3 Greatest Overweight (x) 4 | 4 . . . . . 4 . Average Overweight (x) . | 1 . . . . . . . Largest Inventory Capacity 25 | 8 8 8 8 8 25 8 5 Average Capacity 7 | 7 8 8 8 8 8 6 5 Most Carried 8 | 3 8 8 8 8 8 6 1 Average Carried 5 | . 3 7 7 8 6 3 . Final Capacity 8 | 8 8 8 8 8 8 5 5 Final Carried 8 | 1 7 8 8 8 4 1 . Class Distribution -------------------- 52% | Mutant 45% | Scavenger-Mutant Dominant Class ---------------- Mutant | -10/Materials Mutant | -9/Materials Mutant | -9/Mines Mutant | -8/Materials Scavenger-Mutant | -8/Storage Scavenger-Mutant | -7/Factory Mutant | -7/Lower Caves Resources | -11 -10 -9 -9 -8 -8 -7 -7 ----------- Run | Scr Mat Mat Min Mat Sto Fac Low Matter Collected 963 | 215 193 70 30 . 320 135 . Remotely . | . . . . . . . . Salvage Created 1813 | . 294 181 . . 867 414 57 Parts 94 | . 19 14 . . 35 22 4 Haulers Intercepted . | . . . . . . . . Recyclers Shooed . | . . . . . . . . Parts Field Recycled . | . . . . . . . . Retrieved Matter . | . . . . . . . . Parts Self-Destructed 6 | . . . . . . . 6 Prevented 2 | . . . . . . . 2 Kills | -11 -10 -9 -9 -8 -8 -7 -7 ------- Run | Scr Mat Mat Min Mat Sto Fac Low Combat Hostiles Destroyed 38 | . 7 3 . . 18 8 2 Guns 25 | . 5 1 . . 10 7 2 Cannons 11 | . 2 2 . . 6 1 . Classes Destroyed 7 | . 2 1 . . 2 2 . Worker 1 | . . . . . 1 . . Watcher 3 | . 1 2 . . . . . Swarmer 5 | . . . . . 2 1 2 Grunt 22 | . 7 2 . . 9 4 . Sentry 8 | . . 1 . . 7 . . Hunter 2 | . . . . . . 2 . Programmer 1 | . . . . . . 1 . Best Kill Streak 7 | . 2 3 . . 7 5 2 Combat Bots Only 6 | . 2 2 . . 6 5 2 Max Kills in Single Turn 2 | . 1 1 . . 2 1 1 Gunslinging . | . . . . . . . . Exploded . | . . . . . . . . Melee . | . . . . . . . . Uniques/NPCs Destroyed . | . . . . . . . . Combat | -11 -10 -9 -9 -8 -8 -7 -7 -------- Run | Scr Mat Mat Min Mat Sto Fac Low Damage Taken 4191 | . 298 63 39 . 1500 2013 278 Core 1003 | . 21 24 . . 246 484 228 Absorbed by Shields . | . . . . . . . . Regen/Repaired (Parts) 14 | . 14 . . . . . . Core Remaining (%) 85 | 100 91 . 94 . 55 . . Volleys Fired 151 | . 26 10 . 1 76 32 6 Largest 2 | . 2 2 . 2 2 2 1 Hottest 115 | . 80 80 . 80 88 115 50 Shots Fired 280 | . 51 20 . 2 143 58 6 Gun 229 | . 41 10 . 1 118 53 6 Cannon 51 | . 10 10 . 1 25 5 . Launcher . | . . . . . . . . Special . | . . . . . . . . Kinetic 135 | . 41 10 . 1 73 10 . Thermal 120 | . 10 10 . 1 70 29 . Explosive . | . . . . . . . . Electromagnetic 25 | . . . . . . 19 6 Robot Hit Streak 37 | . 12 24 . 1 37 20 19 Robot Miss Streak 2 | . 1 . . 1 1 2 1 Penetration Max . | . . . . . . . . Secondary Targets 1 | . . . . . 1 . . Max Gunslinging Chain 1 | . . . . . 1 . . Shots Hit Robots 235 | . 40 16 . 1 125 48 5 Core Hits 99 | . 17 8 . 1 45 23 5 Critical Kills 1 | . . . . . 1 . . Critical Parts Destroyed 1 | . . . . . 1 . . Critical Strikes 6 | . . . . . 5 1 . Burn 4 | . . . . . 3 1 . Meltdown 1 | . . . . . 1 . . Destroy 1 | . . . . . 1 . . Melee Attacks . | . . . . . . . . Impact . | . . . . . . . . Slashing . | . . . . . . . . Piercing . | . . . . . . . . Sneak Attacks . | . . . . . . . . Combat Hostiles . | . . . . . . . . Follow-up Attacks . | . . . . . . . . Damage Inflicted 3467 | . 547 257 . 10 1719 860 74 Guns 2653 | . 388 99 . 10 1317 765 74 Cannons 798 | . 159 158 . . 386 95 . Explosions . | . . . . . . . . Melee . | . . . . . . . . Ramming 16 | . . . . . 16 . . Kinetic 1337 | . 388 99 . 10 683 157 . Thermal 1678 | . 159 158 . . 1020 341 . Explosive . | . . . . . . . . Electromagnetic 436 | . . . . . . 362 74 Impact . | . . . . . . . . Slashing . | . . . . . . . . Piercing . | . . . . . . . . Highest Corruption 5 | . . . . . . 5 5 Average Corruption 5 | . . . . . . 5 5 Corruption Purged . | . . . . . . . . Corruption Blocked . | . . . . . . . . Effects 12 | . . . . . . 11 1 Message Errors 4 | . . . . . . 3 1 Matter Fused 1 | . . . . . . 1 . Energy Discharges 2 | . . . . . . 2 . Parts Rejected 1 | . . . . . . 1 . Data Loss (minor) 3 | . . . . . . 3 . Misfires 1 | . . . . . . 1 . Overload Shots . | . . . . . . . . Overflow Damage . | . . . . . . . . Projectiles . | . . . . . . . . Explosions . | . . . . . . . . Melee . | . . . . . . . . Knockbacks . | . . . . . . . . Impact . | . . . . . . . . Kinetic . | . . . . . . . . Secondary . | . . . . . . . . Self-Inflicted Damage 44 | . . . . . . 44 . Shots 1 | . . . . . . 1 . Rammed 2 | . . . . . 2 . . Targets Rammed 2 | . . . . . 2 . . Kicked . | . . . . . . . . Crushed . | . . . . . . . . Highest Temperature 454 | . 165 105 . 21 454 389 . Average Temperature 132 | . 72 45 . 11 163 118 . Received Heat Transfer 1524 | . 210 36 . . 810 468 . Effects 9 | . . . . . 8 1 . Shutdowns 4 | . . . . . 3 1 . Energy Bleed 4 | . . . . . 4 . . Short Circuit 1 | . . . . . 1 . . Siege Activations . | . . . . . . . . Robots Corrupted . | . . . . . . . . Combat Hostiles . | . . . . . . . . Parts Fried . | . . . . . . . . Impact Corruptions . | . . . . . . . . Robots Melted 2 | . . . . . 2 . . Combat Hostiles 2 | . . . . . 2 . . Parts Melted 9 | . 1 . . . 8 . . Heat Transferred 4181 | . 333 333 . . 2627 888 . Parts Sabotaged . | . . . . . . . . Parts Stolen . | . . . . . . . . Parts Stripped . | . . . . . . . . Power Chain Reactions 1 | . . . . . . 1 . Missiles Intercepted . | . . . . . . . . Alert | -11 -10 -9 -9 -8 -8 -7 -7 ------- Run | Scr Mat Mat Min Mat Sto Fac Low Peak Influence 271 | . 230 251 31 25 271 193 . Initial 82 | . . 82 16 10 1 29 . Average 103 | . 108 160 30 13 118 84 . Maximum Alert Level 1 | . 1 1 . . 1 . . Low Security (%) 78 | 100 80 53 100 100 63 100 . Level 1 21 | . 19 46 . . 36 . . Level 2 . | . . . . . . . . Level 3 . | . . . . . . . . Level 4 . | . . . . . . . . Level 5 . | . . . . . . . . High Security . | . . . . . . . . Max Security . | . . . . . . . . Squads Dispatched 12 | . 1 4 . . 2 5 . Investigation 3 | . 1 . . . 1 1 . Extermination 2 | . . . . . . 2 . Reinforcement 7 | . . 4 . . 1 2 . Assault . | . . . . . . . . Garrison . | . . . . . . . . Intercept . | . . . . . . . . Searches Triggered . | . . . . . . . . Construction Impeded . | . . . . . . . . Haulers Reinforced 1 | . . . . . . 1 . Active Scanning Responses . | . . . . . . . . Cargo Convoy Interrupts . | . . . . . . . . Stealth | -11 -10 -9 -9 -8 -8 -7 -7 --------- Run | Scr Mat Mat Min Mat Sto Fac Low Distress Signals 8 | . 2 4 . . 2 . . Communications Jammed 1 | . . . . . . 1 . Distress Signals 1 | . . . . . . 1 . Times Spotted 86 | . 12 7 3 4 27 27 6 Peak Tracking Total 8 | . 3 3 3 4 7 8 3 Tactical Retreats 6 | . 1 1 . . 2 1 1 Traps | -11 -10 -9 -9 -8 -8 -7 -7 ------- Run | Scr Mat Mat Min Mat Sto Fac Low Traps Triggered 7 | . 1 1 . . 2 3 . Indirectly . | . . . . . . . . Trap Hack Attempts . | . . . . . . . . Triggered . | . . . . . . . . Disarmed . | . . . . . . . . Reprogrammed . | . . . . . . . . Reused . | . . . . . . . . Traps Extracted . | . . . . . . . . Installed . | . . . . . . . . Triggered 1 | . . . . . . . 1 Machines | -11 -10 -9 -9 -8 -8 -7 -7 ---------- Run | Scr Mat Mat Min Mat Sto Fac Low Machines Disabled . | . . . . . . . . Max in Single Turn . | . . . . . . . . Machines Sabotaged . | . . . . . . . . Garrisons Compromised . | . . . . . . . . Overloaded Fab Kills . | . . . . . . . . Hacking | -11 -10 -9 -9 -8 -8 -7 -7 --------- Run | Scr Mat Mat Min Mat Sto Fac Low Machines Accessed 4 | . 1 1 . . 1 1 . Terminals 1 | . . . . . 1 . . Fabricators . | . . . . . . . . Repair Stations 1 | . 1 . . . . . . Recycling Units . | . . . . . . . . Scanalyzers 2 | . . 1 . . . 1 . Garrison Access . | . . . . . . . . Total Hacks 7 | . 2 1 . . 1 3 . Successful 6 | . 2 1 . . 1 2 . Failed 1 | . . . . . . 1 . Catastrophic . | . . . . . . . . Database Lockouts . | . . . . . . . . Manual . | . . . . . . . . Terminals 1 | . . . . . 1 . . Fabricators . | . . . . . . . . Repair Stations 2 | . 2 . . . . . . Recycling Units . | . . . . . . . . Scanalyzers 4 | . . 1 . . . 3 . Garrison Access . | . . . . . . . . Terminal Hacks 1 | . . . . . 1 . . Maintenance Status 1 | . . . . . 1 . . Fabricator Hacks . | . . . . . . . . Repair Station Hacks 2 | . 2 . . . . . . Scan Component 1 | . 1 . . . . . . Repair 1 | . 1 . . . . . . Recycling Unit Hacks . | . . . . . . . . Scanalyzer 3 | . . 1 . . . 2 . Insert Component 2 | . . 1 . . . 1 . Analyze 1 | . . . . . . 1 . Garrison Access Hacks . | . . . . . . . . Unauthorized Hacks . | . . . . . . . . Terminals . | . . . . . . . . Fabricators . | . . . . . . . . Repair Stations . | . . . . . . . . Recycling Units . | . . . . . . . . Scanalyzers . | . . . . . . . . Garrison Access . | . . . . . . . . Data Cores Recovered . | . . . . . . . . Used . | . . . . . . . . Hacking Detections 2 | . 1 . . . . 1 . Full Trace Events 1 | . . . . . . 1 . Feedback Events . | . . . . . . . . Feedback Blocked . | . . . . . . . . Robot Schematics Acquired . | . . . . . . . . Robots Built . | . . . . . . . . Authchips . | . . . . . . . . Time . | . . . . . . . . Total Robot Build Rating . | . . . . . . . . Part Schematics Acquired . | . . . . . . . . Parts Built . | . . . . . . . . Authchips . | . . . . . . . . Time . | . . . . . . . . Total Part Build Rating . | . . . . . . . . Parts Repaired 1 | . 1 . . . . . . Time 26 | . 26 . . . . . . Parts Recycled . | . . . . . . . . Recycled Matter . | . . . . . . . . Retrieved Matter . | . . . . . . . . Retrieved Components . | . . . . . . . . Parts Scanalyzed 1 | . . . . . . 1 . Part Schematics Acquired . | . . . . . . . . Parts Damaged . | . . . . . . . . Bothacking | -11 -10 -9 -9 -8 -8 -7 -7 ------------ Run | Scr Mat Mat Min Mat Sto Fac Low Used RIF Installer . | . . . . . . . . Robots Hacked . | . . . . . . . . Non-combat . | . . . . . . . . Combat . | . . . . . . . . Robot Hacks Applied . | . . . . . . . . Relay Couplers Released . | . . . . . . . . Fabnet Peak Effective % . | . . . . . . . . Robots Rewired 1 | . . . . . 1 . . Allies Hacked . | . . . . . . . . Hacks Repelled . | . . . . . . . . Allies | -11 -10 -9 -9 -8 -8 -7 -7 -------- Run | Scr Mat Mat Min Mat Sto Fac Low Total Allies 17 | . . . 4 . 10 3 . Largest Group 10 | . . . 4 2 10 10 . Highest-Rated Group 173 | . . . 71 24 173 173 . Highest-Rated Ally 31 | . . . 31 16 29 31 . Total Orders . | . . . . . . . . Ally Attacks 79 | . . . . 15 3 61 . Total Damage 1034 | . . . . 181 35 818 . Kills 7 | . . . . . 1 6 . Allies Corrupted 1 | . . . . . . 1 . Allies Melted 1 | . . . . . . 1 . Intel | -11 -10 -9 -9 -8 -8 -7 -7 ------- Run | Scr Mat Mat Min Mat Sto Fac Low Robot Analysis Total . | . . . . . . . . Derelict Logs Recovered 2 | . . . 1 . . . 1 Drone Launches . | . . . . . . . . Drone Recoveries . | . . . . . . . . Exploration | -11 -10 -9 -9 -8 -8 -7 -7 ------------- Run | Scr Mat Mat Min Mat Sto Fac Low Turns Passed 3150 | 92 343 518 183 80 986 864 84 Spaces Moved 1806 | 56 179 353 148 65 431 432 142 Core 313 | 25 . . . . . 146 142 Treads 686 | . . . . . 400 286 . Legs 807 | 31 179 353 148 65 31 . . Wheels . | . . . . . . . . Hover . | . . . . . . . . Flight . | . . . . . . . . Fastest Speed 50 | 50 120 120 120 120 120 50 50 Average Speed 131 | 139 120 120 120 120 157 153 50 Slowest Speed 250 | 250 120 120 120 120 160 250 50 Overloaded Moves . | . . . . . . . . Propulsion Burnouts . | . . . . . . . . Robots Hopped . | . . . . . . . . Cave-ins Triggered 1 | . . . . . . 1 . Exploration Rate (%) 25 | 5 34 25 45 9 57 13 15 Regions Visited 7 Branch Regions 3 Pre-discovered Areas 1 | . . . 1 . . . . Known Exits Taken 1 | . . . 1 . . . . Unknown Exits Taken 6 | 1 1 1 . 1 1 1 . Scrap Searched . | . . . . . . . . Spaces Dug . | . . . . . . . . Terrain Destroyed 3 | . . . . . . 3 . Melee . | . . . . . . . . Projectile 1 | . . . . . . 1 . AOE 2 | . . . . . . 2 . Terrain Rammed . | . . . . . . . . Walls Destroyed . | . . . . . . . . Machines Disabled . | . . . . . . . . Actions | -11 -10 -9 -9 -8 -8 -7 -7 --------- Run | Scr Mat Mat Min Mat Sto Fac Low Total 2304 | 70 257 428 153 65 607 575 149 Wait 238 | 2 37 58 . . 48 93 . Move 1799 | 55 178 352 147 64 430 431 142 Hop . | . . . . . . . . Pick Up 45 | 7 10 3 1 . 16 8 . Fast Attach 4 | . . . 1 . 3 . . Attach 39 | 6 4 1 1 . 15 11 1 Detach 1 | . 1 . . . . . . Swap 6 | . . 2 1 . 3 . . Drop 18 | . 1 2 2 . 13 . . Fire 151 | . 26 10 . 1 76 32 6 Melee . | . . . . . . . . Ram . | . . . . . . . . Kick . | . . . . . . . . Crush 2 | . . . . . 2 . . Escape Stasis . | . . . . . . . . Rewire 1 | . . . . . 1 . . Trap . | . . . . . . . . Miscellaneous . | . . . . . . . . Route ------- -11/Scrapyard -10/Materials -9/Materials -9/Mines -8/Materials -8/Storage -7/Factory -7/Lower Caves (discovered 1 exit: Low) History --------- Turn | Location | Event 14 | -11/Scrapyard | Discovered new exit (range 14) 93 | -11/Scrapyard | Entered Materials 268 | -10/Materials | Repaired Sensor Array? 321 | -10/Materials | Build established: Mutant 404 | -10/Materials | Discovered new exit (range 16) 436 | -10/Materials | Entered another Materials area 436 | -9/Materials | Evolved 2 slots: Power x1, Utility x1 857 | -9/Materials | Discovered new exit (range 11) 954 | -9/Materials | Entered Mines 956 | -9/Mines | Met a Derelict bent on vengeance 967 | -9/Mines | Escorted by a lone wolf Derelict 987 | -9/Mines | Learned location of Storage (-8) 1010 | -9/Mines | Assisted by bots powering up and referring to "LRC-V3" 1035 | -9/Mines | Identified exit to Materials 1137 | -9/Mines | Entered Materials 1137 | -8/Materials | Accompanied by 2 allies 1137 | -8/Materials | Evolved 2 slots: Utility x2 1187 | -8/Materials | Discovered new exit (range 8) 1217 | -8/Materials | Entered Storage 1479 | -8/Storage | Lost 4 parts (2p1n1u) 1597 | -8/Storage | Build established: Scavenger-Mutant 2156 | -8/Storage | Assisted by bots powering up and referring to "LRC-V3" 2179 | -8/Storage | Discovered new exit (range 15) 2203 | -8/Storage | Entered Factory 2203 | -7/Factory | Accompanied by 10 allies 2203 | -7/Factory | Evolved 2 slots: Propulsion x2 2717 | -7/Factory | Crushed by falling debris 2748 | -7/Factory | Lost 6 parts (1p2n3u) 2852 | -7/Factory | Allied Derelicts emerged from ambush trap array 2853 | -7/Factory | Lost 5 parts (1p1n1u2w) 2966 | -7/Factory | Core integrity fell below 50% 3056 | -7/Factory | Build established: Mutant 3061 | -7/Factory | Discovered new exit (range 13) 3067 | -7/Factory | Entered Lower Caves 3069 | -7/Lower Caves | Identified exit to Lower Caves 3117 | -7/Lower Caves | Core integrity fell below 20% 3151 | -7/Lower Caves | Destroyed by S-27 Virus with Autogun Last Messages --------------- 02964_ U-05 Engineer builds a Wall. 02966_ Acquired 5 matter. 02992_ System corrupted: Component data lost. 03016_ O-24 Administrator: "IFF HANDSHAKE FAILED. SECURING TERMINAL." 03026_ ALERT: Hostiles spotted, dispatching reinforcements to Terminal F010. 03034_ Critical hit (Burn: +37). 03035_ System corrupted: Adv. ECM Suite rejected. 03054_ Adv. Assault Cannon destroyed. 03061_ EXIT=FOUND 03064_ System corrupted: Component data lost. LOCATION=UNKNOWN GOAL=ESCAPE 03069_ Acquired derelict log, extracted data. 03103_ S-27 Virus destroyed. 03111_ Shock Rifle destroyed. 03115_ S-27 Virus misfires. 03116_ VTOL Module fries itself beyond repair. 03118_ Corrupted Lgt. Nuclear Core fries itself beyond repair. 03147_ 0NAXPQPVFZHU/GGU0A4ELT RZPAPFFQEY Map ----- +----------------------------------------------------+ | ????????????????????????????????## #?? | | ?????????????????????????????????# #?? | | ?????????????????????????????????# #?? | | ?????????????????????????????????## #####?? | | ?????????????????????????????????## ##?????? | | ?????????????????????????????????# ##??????? | | ?????????????????????????????????## ##?????? | | ??????????????????????????????????### #### | | ???????????????????????????????????## #?? | | ????????????????? ?????????????????# ##?? | | ??????????????? ????????????????## ### #?## | | ??????????????? ????##???????### #?? ### | | ???????????????? #??? ##??????# #?? ## | | ???????????????? ### ##?????# #??## ## | | ????????????????? ##????## #????### | | ?????????????????? #????## #????## | | ????????##????????? ?##### #???## # | | ????????# ????????? ?## ## #??## ## | | ???? ### ????????? ??# #?## ##? | | ???? ????????# #?## s ### ### | | ???? ???????# ### ## ## | | ?????? #?###### # ### | | ?????????# =## ### | | ?????????# % #### | | ?????????# [% # ##??##### ## | | ?????????# ## @ ###???????## #? | | ?????????## #??????????# #? | | ??????????# ## #?????????# | | ??????????# ###### #????????# | | ??????????## ##????# ##????????# | | ???????????######??????# ####?????????#### ##### | | ???????????????????????####???????????????####???? | | ?????????????????????????????????????????????????? | | ?????????????????????????????????????????????????? | | ?????????????????????????????????????????????????? | | ?????????????????????????????????????????????????? | | ?????????????????????????????????????????????????? | | ?????????????????????????????????????????????????? | | ?????????????????????????????????????????????????? | | ?????????????????????????????????????????????????? | | ?????????????????????????????????????????????????? | | ?????????????????????????????????????????????????? | | ?????????????????????????????????????????????????? | | ?????????????????????????????????????????????????? | | ?????????????????????????????????????????????????? | | ?????????????????????????????????????????????????? | | ?????????????????????????????????????????????????? | | ?????????????????????????????????????????????????? | | ?????????????????????????????????????????????????? | | ?????????????????????????????????????????????????? | +----------------------------------------------------+ Best States ------------- Heat Dissipation 34 Energy Generation 23 Energy Capacity 440 Matter Stores 300 Matter Capacity 300 Sight Range 16 Robot Scan Range 14 Terrain Scan Density 10 Jamming Range 12 Additional Mass Support 6 Armor Coverage 225 Resistance: KI 20 Resistance: TH 20 Resistance: EX 20 Resistance: EM 20 Resistance: I 20 Resistance: S 20 Resistance: P 20 Evasion (%) 55 Targeting Accuracy 5 Recoil Reduction 4 Offensive Hacking 10 Item Schematics ----------------- None Robot Schematics ------------------ None Fabricated ------------ Nothing Alien Tech Used ----------------- None Achievements -------------- A New Friend It's Just You Safety First Challenges ------------ None Game ------ Seed MachineTargetingProtection Manual? 0 Play Time 01:04:47 Cumulative 17.6 hours Start 2022.03.18 @ 20:25:22 End 2022.03.18 @ 21:35:55 Sessions 1 Manual Loads 0 Difficulty Adventurer Special Mode None Game No. 19 Rogue 14 Adventurer 5 Explorer 0 Win Type - Total 0 Types 0/0/0/0/0/0/0/0/0 Lore% 4 Gallery% 22 Achievement% 14 Wizard Run 0 Options --------- ASCII 0 Keyboard 0 Movement Mouse Keybinds 0 Fullscreen 2 Font 18/Terminus Map View 76x50 Tactical HUD 1 Map Filters NONE Filters NONE Steam 1 RUN: 70f4be31-1ec5-4908-aad5-32182c535874